Cogmind - Beta 15 @@@ ROGUE MODE // 2025.09.23 @ 23:44:39 Player: orange Result: Destroyed by as-64533 with Assembled Heavy Rifle Performance ------------- Evolutions (0) 0 Regions Visited (2) 400 Robots Destroyed (19) 95 Value Destroyed (323) 323 Prototype IDs (0) 0 Alien Tech Used (0) 0 Bonus (0) 0 TOTAL SCORE: 818 Bonus ------- None Cogmind --------- Core Integrity 0/250 Matter 223/300 Energy 98/100 System Corruption 0% Temperature Cool (0) Movement Treading (240) Ox1 Location -10/Mines Parts ------- > --- POWER (1) -------- (None) > --- PROPULSION (2) --- Light Treads > --- UTILITY (2) ------ Large Storage Unit Sensor Array > --- WEAPON (2) ------- Light Assault Rifle Light Assault Rifle > --- INVENTORY (15) --- Ion Engine Improved Heat Sink Huge Storage Unit Structural Scanner Signal Interpreter Signal Interpreter Seismic Detector ECM Suite Hacking Suite Light Assault Rifle Datajack Mining Laser Peak State ------------ > --- POWER ------------ Ion Engine > --- PROPULSION ------- Light Treads Light Treads > --- UTILITY ---------- Improved Heat Sink Huge Storage Unit > --- WEAPON ----------- Medium Laser Light Assault Rifle > --- INVENTORY -------- Ion Engine Medium Storage Unit Structural Scanner Sensor Array Signal Interpreter Signal Interpreter Seismic Detector Hacking Suite Grenade Launcher Mining Laser [Rating: 10] Favorites ----------- Power Ion Engine Engine Ion Engine Propulsion Light Treads Treads Light Treads Utility Large Storage Unit Device Sensor Array Storage Large Storage Unit Weapon Light Assault Rifle Energy Gun Medium Laser Ballistic Gun Light Assault Rifle Launcher Grenade Launcher Special Weapon Mining Laser Special Melee Weapon Datajack Build | -11 -10 -10 ------- Run | Yrd Mat Min Slots Evolved . | . . . Power . | . . . Propulsion . | . . . Utility . | . . . Weapon . | . . . Parts Attached 23 | 7 13 3 Power 4 | 1 3 . Engine 4 | 1 3 . Core . | . . . Reactor . | . . . Propulsion 2 | 2 . . Treads 2 | 2 . . Leg . | . . . Wheel . | . . . Hover . | . . . Flight . | . . . Utility 8 | 2 6 . Device 4 | 1 3 . Storage 4 | 1 3 . Processor . | . . . Hackware . | . . . Protection . | . . . Artifact . | . . . Weapon 9 | 2 4 3 Energy Gun 2 | 1 1 . Energy Cannon . | . . . Ballistic Gun 3 | 1 2 . Ballistic Cannon . | . . . Launcher 2 | . . 2 Special Weapon 1 | . 1 . Impact Weapon . | . . . Slashing Weapon . | . . . Piercing Weapon . | . . . Special Melee Weapon 1 | . . 1 Unidentified Prototypes . | . . . Parts Lost 6 | . 1 5 Power 1 | . . 1 Propulsion 1 | . . 1 Utility . | . . . Weapon 4 | . 1 3 Highest Loss Streak 4 | . 1 4 To Critical Strikes . | . . . Average Backups 9 | 2 9 14 Power . | . . 1 Propulsion . | . . . Utility 5 | . 5 8 Weapon 3 | 1 3 4 Tool/Special . | . . . Unused Backups 5 | . 1 4 Power 1 | . 1 . Propulsion . | . . . Utility 4 | . . 4 Weapon . | . . . Tool/Special . | . . . Average Slot Usage (%) 98 | . 99 92 Engine 13 | . 14 10 Treads 27 | . 27 23 Device 14 | . 14 14 Storage 14 | . 14 14 Energy Gun 12 | . 12 4 Ballistic Gun 12 | . 12 11 Special Weapon 2 | . 2 . Peak Build Rating 10 | 7 10 8 Average Rating 7 | 5 8 7 On Entrance 5 | . 7 8 Naked Turns . | . . . Heaviest Build 90 | 12 90 32 Greatest Support 40 | 40 40 40 Greatest Overweight (x) 3 | 3 2 1 Average Overweight (x) . | . . . Largest Inventory Capacity 25 | 8 25 15 Average Capacity 14 | 7 14 15 Most Carried 15 | 3 15 15 Average Carried 9 | 2 9 14 Final Capacity 15 | 8 15 15 Final Carried 15 | 3 15 12 Class Distribution -------------------- 100% | Mutant Dominant Class ---------------- Mutant | -10/Materials Mutant | -10/Mines Resources | -11 -10 -10 ----------- Run | Yrd Mat Min Matter Collected 566 | 283 266 17 Remotely . | . . . Salvage Created 482 | 70 365 47 Parts 32 | 11 13 8 Haulers Intercepted 2 | . 2 . Recyclers Shooed . | . . . Parts Field Recycled . | . . . Retrieved Matter . | . . . Parts Self-Destructed . | . . . Prevented . | . . . Kills | -11 -10 -10 ------- Run | Yrd Mat Min Combat Hostiles Destroyed 13 | . 7 6 Guns 10 | . 7 3 AOE 3 | . . 3 Classes Destroyed 8 | 1 3 4 Worker 1 | . . 1 Builder 1 | . . 1 Tunneler 4 | 4 . . Hauler 2 | . 2 . Swarmer 6 | . 3 3 Grunt 4 | . 4 . Demolisher 1 | . . 1 Assembled 2 | . . 2 Best Kill Streak 5 | 2 3 5 Combat Bots Only 3 | . 3 3 Max Kills in Single Turn 2 | 1 1 2 Gunslinging . | . . . Exploded 2 | . . 2 Melee . | . . . Uniques/NPCs Destroyed . | . . . Combat | -11 -10 -10 -------- Run | Yrd Mat Min Hostile Shots Fired 91 | . 61 30 Missed 21 | . 16 5 Hits 70 | . 45 25 Melee 2 | . . 2 Projectile 68 | . 45 23 AOE 8 | . . 8 Damage Taken 1187 | . 525 662 Core 258 | . 150 108 Absorbed by Shields . | . . . Regen/Repaired (Parts) 219 | . 219 . Core Remaining (%) 100 | 100 . . Volleys Fired 86 | 13 61 12 Largest 2 | 2 2 2 Hottest 150 | 70 150 70 Shots Fired 168 | 26 121 21 Gun 161 | 26 119 16 Cannon . | . . . Launcher 5 | . . 5 Special 2 | . 2 . Kinetic 73 | 13 51 9 Thermal 82 | 13 62 7 Explosive 5 | . . 5 Electromagnetic 8 | . 8 . Robot Hit Streak 14 | 5 14 8 Robot Miss Streak 2 | 2 2 1 Penetration Max . | . . . Secondary Targets 3 | . 2 1 Max Gunslinging Chain 1 | . 1 1 Shots Hit Robots 112 | 12 81 19 Core Hits 39 | 4 20 15 Critical Kills 1 | . . 1 Critical Parts Destroyed 1 | 1 . . Critical Strikes 5 | 1 3 1 Burn 3 | . 3 . Destroy 2 | 1 . 1 Melee Attacks 3 | . . 3 Impact . | . . . Slashing . | . . . Piercing . | . . . Sneak Attacks 3 | . . 3 Combat Hostiles . | . . . Follow-up Attacks . | . . . Damage Inflicted 1348 | 131 859 358 Guns 1082 | 131 859 92 Cannons . | . . . Explosions 266 | . . 266 Melee . | . . . Ramming . | . . . Kinetic 329 | 44 243 42 Thermal 667 | 87 530 50 Explosive 266 | . . 266 Electromagnetic 86 | . 86 . Impact . | . . . Slashing . | . . . Piercing . | . . . Highest Corruption . | . . . Average Corruption . | . . . Corruption Purged . | . . . Corruption Blocked . | . . . Overload Shots . | . . . Overflow Damage . | . . . Projectiles . | . . . Explosions . | . . . Melee . | . . . Knockbacks . | . . . Impact . | . . . Kinetic . | . . . Secondary . | . . . Self-Inflicted Damage 42 | . . 42 Shots 4 | . . 4 Rammed . | . . . Targets Rammed . | . . . Kicked . | . . . Crushed . | . . . Highest Temperature 213 | 100 213 35 Average Temperature 38 | 40 39 18 Received Heat Transfer 252 | . 252 . Siege Activations . | . . . Martial Activations . | . . . Shielding Activations . | . . . Robots Disrupted . | . . . Combat Hostiles . | . . . Robots Corrupted . | . . . Combat Hostiles . | . . . Parts Fried . | . . . Impact Corruptions . | . . . Robots Melted . | . . . Combat Hostiles . | . . . Parts Melted 3 | 1 2 . Heat Transferred 2220 | 259 1813 148 Parts Sabotaged . | . . . Parts Stolen . | . . . Parts Stripped . | . . . Power Chain Reactions . | . . . Alert | -11 -10 -10 ------- Run | Yrd Mat Min Maximum Alert Level . | . . . Low Security (%) 100 | 100 100 100 Level 1 . | . . . Level 2 . | . . . Level 3 . | . . . Level 4 . | . . . Level 5 . | . . . High Security . | . . . Max Security . | . . . Peak Influence 131 | 10 131 98 Initial 19 | . . 19 Average 33 | 1 34 58 Influence Increases 401 | 20 253 128 Destroy 0b10 Robot/C 220 | . 140 80 Destroy 0b10 Robot/NC 40 | 20 10 10 Destroy Leader 54 | . 34 20 Successful Hack 38 | . 38 . Disable Machine 15 | . 15 . Destroy Structure 19 | . 1 18 Lose Combat Pursuer 15 | . 15 . Influence Decreases 394 | 20 203 171 Entered New Map 31 | . . 31 Time Decay 313 | 20 203 90 Lost Part 50 | . . 50 Squads Dispatched 1 | . 1 . Investigation . | . . . Extermination . | . . . Reinforcement 1 | . 1 . Assault . | . . . Garrison . | . . . Intercept . | . . . Searches Triggered . | . . . Construction Impeded . | . . . Haulers Reinforced . | . . . Active Scanning Responses . | . . . Cargo Convoy Interrupts . | . . . Stealth | -11 -10 -10 --------- Run | Yrd Mat Min Distress Signals 2 | . 2 . Communications Jammed . | . . . Distress Signals . | . . . Times Spotted 22 | . 9 13 Peak Tracking Total 5 | . 3 5 Tactical Retreats 1 | . 1 . Traps | -11 -10 -10 ------- Run | Yrd Mat Min Traps Triggered . | . . . Indirectly . | . . . Trap Hack Attempts . | . . . Triggered . | . . . Disarmed . | . . . Reprogrammed . | . . . Reused . | . . . Traps Extracted . | . . . Installed . | . . . Triggered . | . . . Machines | -11 -10 -10 ---------- Run | Yrd Mat Min Machines Disabled 1 | . 1 . Max in Single Turn 1 | . 1 . Machines Repaired . | . . . Machines Dismantled . | . . . Machines Sabotaged . | . . . Overloaded Fab Kills . | . . . Hacking | -11 -10 -10 --------- Run | Yrd Mat Min Machines Accessed 8 | . 8 . Terminals 6 | . 6 . Fabricators . | . . . Repair Stations 1 | . 1 . Recycling Units 1 | . 1 . Scanalyzers . | . . . Garrison Access . | . . . Total Hacks 31 | . 31 . Successful 20 | . 20 . Failed 10 | . 10 . Catastrophic 1 | . 1 . Database Lockouts 1 | . 1 . Manual 18 | . 18 . Terminals 24 | . 24 . Fabricators . | . . . Repair Stations 4 | . 4 . Recycling Units 3 | . 3 . Scanalyzers . | . . . Garrison Access . | . . . Terminal Hacks 6 | . 6 . Record 2 | . 2 . Part Schematic 1 | . 1 . Branch Access Points 1 | . 1 . Locate Traps 1 | . 1 . Hauler Manifests 1 | . 1 . Fabricator Hacks . | . . . Repair Station Hacks 4 | . 4 . Scan Component 2 | . 2 . Repair 2 | . 2 . Recycling Unit Hacks 1 | . 1 . Report Inventory 1 | . 1 . Scanalyzer . | . . . Garrison Access Hacks . | . . . Unauthorized Hacks 9 | . 9 . Terminals 7 | . 7 . Botnet 2 | . 2 . Skim 5 | . 5 . Fabricators . | . . . Repair Stations . | . . . Recycling Units 2 | . 2 . Monitor 1 | . 1 . Recyclers 1 | . 1 . Scanalyzers . | . . . Garrison Access . | . . . Data Cores Recovered 1 | . 1 . Used 1 | . 1 . Hacking Detections 7 | . 7 . Full Trace Events . | . . . Feedback Events . | . . . Feedback Blocked . | . . . Robot Schematics Acquired . | . . . Robots Built . | . . . Authchips . | . . . Time . | . . . Total Robot Build Rating . | . . . Part Schematics Acquired 1 | . 1 . Parts Built . | . . . Authchips . | . . . Time . | . . . Total Part Build Rating . | . . . Parts Repaired 2 | . 2 . Time 52 | . 52 . Parts Recycled . | . . . Recycled Matter . | . . . Retrieved Matter . | . . . Retrieved Components . | . . . Parts Scanalyzed . | . . . Part Schematics Acquired . | . . . Parts Damaged . | . . . Bothacking | -11 -10 -10 ------------ Run | Yrd Mat Min Used RIF Installer . | . . . Robots Hacked 2 | . . 2 Non-combat 2 | . . 2 Combat . | . . . Robot Hacks Applied 2 | . . 2 no_distress 2 | . . 2 Relay Couplers Released . | . . . Fabnet Peak Effective % . | . . . Robots Rewired . | . . . Allies Hacked . | . . . Hacks Repelled . | . . . Allies | -11 -10 -10 -------- Run | Yrd Mat Min Total Allies . | . . . Largest Group . | . . . Highest-Rated Group . | . . . Highest-Rated Ally . | . . . Total Orders . | . . . Ally Attacks . | . . . Total Damage . | . . . Kills . | . . . Allies Corrupted . | . . . Allies Melted . | . . . Intel | -11 -10 -10 ------- Run | Yrd Mat Min Active Infowar (turns) 1966 | 53 1726 187 Sensors 893 | . 706 187 Structural 409 | . 409 . Seismic 664 | 53 611 . Robot Analysis Total . | . . . Derelict Logs Recovered . | . . . Drone Launches . | . . . Drone Recoveries . | . . . Exploration | -11 -10 -10 ------------- Run | Yrd Mat Min Turns Passed 2583 | 201 2195 187 Spaces Moved 1183 | 101 1001 81 Core 13 | 13 . . Treads 1170 | 88 1001 81 Legs . | . . . Wheels . | . . . Hover . | . . . Flight . | . . . Fastest Speed 50 | 50 160 160 Average Speed 171 | 150 173 173 Slowest Speed 320 | 200 320 240 Overloaded Moves . | . . . Propulsion Burnouts . | . . . Robots Hopped . | . . . Potential Cave-ins . | . . . Cave-ins Triggered . | . . . Exploration Rate (%) 39 | 5 99 15 Regions Visited 2 Branch Regions 1 Pre-discovered Areas . | . . . Known Exits Taken 1 | . 1 . Unknown Exits Taken 1 | 1 . . Scrap Searched . | . . . Spaces Dug 1 | . 1 . Terrain Destroyed 22 | . 1 21 Melee . | . . . Projectile 1 | . 1 . AOE 21 | . . 21 Terrain Rammed . | . . . Walls Destroyed . | . . . Machines Disabled . | . . . Actions | -11 -10 -10 --------- Run | Yrd Mat Min Total 1575 | 123 1345 107 Wait 243 | . 238 5 Move 1181 | 100 1000 81 Hop . | . . . Pick Up 18 | 3 15 . Fast Attach 9 | 7 2 . Attach 7 | . 4 3 Detach 3 | . 3 . Swap 19 | . 16 3 Drop 6 | . 6 . Fire 86 | 13 61 12 Melee 3 | . . 3 Ram . | . . . Kick . | . . . Crush . | . . . Escape Stasis . | . . . Rewire . | . . . Trap . | . . . Miscellaneous . | . . . Route ------- -11/Scrapyard -10/Materials (discovered 5 exits: *Mat x3 / *Min / Sub) -10/Mines (discovered 2 exits: Mat x2) History --------- Turn | Location | Event 12 | -11/Scrapyard | Discovered new exit (range 15) 202 | -11/Scrapyard | Entered Materials 203 | -10/Materials | Met a group of wandering Federalists 317 | -10/Materials | Build established: Mutant 731 | -10/Materials | Discovered new exit (range 12) 1088 | -10/Materials | Discovered new exit (range 5) 1631 | -10/Materials | Central database locked down 1688 | -10/Materials | Core integrity fell below 50% 1736 | -10/Materials | Discovered new exit (range 16) 1915 | -10/Materials | Discovered new exit (range 3) 1949 | -10/Materials | Identified exit to Mines 2009 | -10/Materials | Identified exit to Subcaves 2009 | -10/Materials | Learned location of 1 exit from Materials 2059 | -10/Materials | Learned 2 Storage zone layouts 2193 | -10/Materials | Repaired Lgt. Treads 2217 | -10/Materials | Learned Materials stockpile data 2220 | -10/Materials | Repaired Lgt. Treads 2397 | -10/Materials | Entered Mines 2398 | -10/Mines | Identified exit to Materials 2471 | -10/Mines | Assembled infested the area 2476 | -10/Mines | Assisted by a Guerilla fighting off Assembled 2508 | -10/Mines | Core integrity fell below 20% 2562 | -10/Mines | Lost 4 parts (1p1n2w) 2584 | -10/Mines | Destroyed by as-64533 with Assembled Heavy Rifle Last Messages --------------- 02557_ The unstable cave ceiling collapses. 02557_ U-05 Engineer lays Concrete. 02559_ K-01 Serf collects debris. 02560_ U-05 Engineer lays Concrete. 02562_ U-05 Engineer builds a Wall. 02563_ K-01 Serf collects debris. 02565_ Med. Laser destroyed. 02567_ U-05 Engineer lays Concrete. 02567_ K-01 Serf collects debris. 02568_ U-05 Engineer lays Concrete. 02569_ U-05 Engineer builds a Wall. 02570_ K-01 Serf destroyed. 02573_ U-05 Engineer lays Concrete. 02576_ The unstable cave ceiling collapses. 02576_ U-05 Engineer lays Concrete. 02578_ U-05 Engineer builds a Wall. 02579_ U-05 Engineer lays Concrete. 02582_ U-05 Engineer builds a Wall. 02583_ U-05 Engineer lays Concrete. [Achievement: First Step to Greatness] Map ----- +----------------------------------------------------+ | ?????????????????????????????????????????????????? | | ?????????????????????????????????????????????????? | | ?????????????????????????????????????????????????? | | ?????????????????????????????????????????????????? | | ?????????????????????????????????????????????????? | | ?????????????????????????????????????????????????? | | ?????????????????????????????????????????????????? | | ?????????????????????????????????????????????????? | | ???????????????????????????????????????